[Event "*** Titled Tuesday Blitz"]
[Site "Chess.com"]
[Date "2021.04.27"]
[Round "11"]
[White "Iball95"]
[Black "Andreikka"]
[Result "0-1"]
[WhiteElo "2659"]
[BlackElo "2893"]
[TimeControl "180+1"]
[EndTime "12:05:11 PDT"]
[Termination "Andreikka won by checkmate"]

1. e4 {[%clk 0:03:00.9]} 1... e5 {[%clk 0:02:57]} 2. Nf3 {[%clk 0:03:01.1]} 2...
Nc6 {[%clk 0:02:57.3]} 3. Nc3 {[%clk 0:03:01.1]} 3... Nf6 {[%clk 0:02:56.6]} 4.
Bb5 {[%clk 0:03:01.3]} 4... Bd6 {[%clk 0:02:55.5]} 5. a3 {[%clk 0:03:00.9]} 5...
a6 {[%clk 0:02:54.7]} 6. Bc4 {[%clk 0:02:59.3]} 6... Bc5 {[%clk 0:02:55.2]} 7.
d3 {[%clk 0:02:55.1]} 7... h6 {[%clk 0:02:53.7]} 8. Be3 {[%clk 0:02:53.4]} 8...
Bxe3 {[%clk 0:02:52.6]} 9. fxe3 {[%clk 0:02:54.3]} 9... d6 {[%clk 0:02:50.1]}
10. O-O {[%clk 0:02:53.4]} 10... O-O {[%clk 0:02:46.1]} 11. Nh4 {[%clk
0:01:57.6]} 11... Nxe4 {[%clk 0:02:14.7]} 12. Rxf7 {[%clk 0:01:44.9]} 12... Rxf7
{[%clk 0:02:11.7]} 13. Bxf7+ {[%clk 0:01:45.3]} 13... Kxf7 {[%clk 0:02:10.6]}
14. Qh5+ {[%clk 0:01:45.3]} 14... Kg8 {[%clk 0:02:11.1]} 15. Nxe4 {[%clk
0:01:33]} 15... Be6 {[%clk 0:01:46]} 16. Rf1 {[%clk 0:01:31.8]} 16... Qe7 {[%clk
0:01:22.6]} 17. Ng6 {[%clk 0:00:58.7]} 17... Qd7 {[%clk 0:01:23]} 18. Nh4 {[%clk
0:00:35.9]} 18... Rf8 {[%clk 0:01:12.2]} 19. Rxf8+ {[%clk 0:00:31.2]} 19... Kxf8
{[%clk 0:01:13.1]} 20. Qg6 {[%clk 0:00:18.5]} 20... Ne7 {[%clk 0:01:12.1]} 21.
Qg3 {[%clk 0:00:13.6]} 21... Qb5 {[%clk 0:01:03.8]} 22. b3 {[%clk 0:00:11.4]}
22... Qa5 {[%clk 0:00:58.6]} 23. a4 {[%clk 0:00:07.2]} 23... Qb6 {[%clk
0:00:53.1]} 24. h3 {[%clk 0:00:06.7]} 24... Qc6 {[%clk 0:00:52]} 25. Ng6+ {[%clk
0:00:05.6]} 25... Nxg6 {[%clk 0:00:47]} 26. Qxg6 {[%clk 0:00:06.5]} 26... Bf7
{[%clk 0:00:40.9]} 27. Qf5 {[%clk 0:00:06.4]} 27... Qxc2 {[%clk 0:00:41]} 28.
Qc8+ {[%clk 0:00:05.3]} 28... Be8 {[%clk 0:00:27.1]} 29. Qf5+ {[%clk 0:00:05.4]}
29... Bf7 {[%clk 0:00:27.7]} 30. Qc8+ {[%clk 0:00:05.5]} 30... Ke7 {[%clk
0:00:28.4]} 31. Qxb7 {[%clk 0:00:05.4]} 31... Bxb3 {[%clk 0:00:29]} 32. Kh2
{[%clk 0:00:04.3]} 32... Bxa4 {[%clk 0:00:25.2]} 33. Ng3 {[%clk 0:00:04.4]}
33... Bd7 {[%clk 0:00:22.9]} 34. Qxa6 {[%clk 0:00:03.6]} 34... Qf2 {[%clk
0:00:16.1]} 35. e4 {[%clk 0:00:03.6]} 35... Qf4 {[%clk 0:00:15.4]} 36. Qa7
{[%clk 0:00:03.7]} 36... h5 {[%clk 0:00:13.7]} 37. Qxc7 {[%clk 0:00:01.4]} 37...
h4 {[%clk 0:00:14.2]} 38. Kg1 {[%clk 0:00:02]} 38... Qe3+ {[%clk 0:00:13.2]} 39.
Kh1 {[%clk 0:00:01.1]} 39... hxg3 {[%clk 0:00:13.4]} 40. Qc3 {[%clk 0:00:01.6]}
40... Qf2 {[%clk 0:00:11.5]} 41. Qc1 {[%clk 0:00:01.9]} 41... Kf7 {[%clk
0:00:10.7]} 42. h4 {[%clk 0:00:01.8]} 42... Bh3 {[%clk 0:00:10.3]} 43. Qg1
{[%clk 0:00:02.2]} 43... Qxg1+ {[%clk 0:00:10.4]} 44. Kxg1 {[%clk 0:00:03.1]}
44... Bg4 {[%clk 0:00:11]} 45. Kf1 {[%clk 0:00:03.3]} 45... Kg6 {[%clk
0:00:11.3]} 46. Ke1 {[%clk 0:00:04.2]} 46... Kh5 {[%clk 0:00:12]} 47. Kd2 {[%clk
0:00:05.1]} 47... Bh3 {[%clk 0:00:11.8]} 48. Ke3 {[%clk 0:00:06]} 48... Bxg2
{[%clk 0:00:12.3]} 49. d4 {[%clk 0:00:06.8]} 49... Kxh4 {[%clk 0:00:12.4]} 50.
dxe5 {[%clk 0:00:07.7]} 50... dxe5 {[%clk 0:00:12.9]} 51. Kd3 {[%clk 0:00:07.6]}
51... Bxe4+ {[%clk 0:00:13]} 52. Kxe4 {[%clk 0:00:08.5]} 52... g2 {[%clk
0:00:12.9]} 53. Kf5 {[%clk 0:00:08.8]} 53... g1=Q {[%clk 0:00:12.4]} 54. Ke4
{[%clk 0:00:09.7]} 54... Qg4+ {[%clk 0:00:11.8]} 55. Kd5 {[%clk 0:00:09.4]}
55... Qf5 {[%clk 0:00:11.6]} 56. Kc5 {[%clk 0:00:09.5]} 56... g5 {[%clk
0:00:12.2]} 57. Kc4 {[%clk 0:00:10.4]} 57... g4 {[%clk 0:00:12.8]} 58. Kc3
{[%clk 0:00:10.1]} 58... e4 {[%clk 0:00:12.8]} 59. Kd2 {[%clk 0:00:11]} 59...
e3+ {[%clk 0:00:13.3]} 60. Ke1 {[%clk 0:00:11.9]} 60... Qf2+ {[%clk 0:00:12.7]}
61. Kd1 {[%clk 0:00:11.9]} 61... Qd2# {[%clk 0:00:13.4]} 0-1

[Event "*** Titled Tuesday Blitz"]
[Site "Chess.com"]
[Date "2021.04.27"]
[Round "11"]
[White "InitiatingASC"]
[Black "HouseOfDurin"]
[Result "1-0"]
[WhiteElo "2373"]
[BlackElo "2130"]
[TimeControl "180+1"]
[EndTime "12:05:13 PDT"]
[Termination "InitiatingASC won on time"]

1. Nf3 {[%clk 0:03:00.9]} 1... c5 {[%clk 0:02:57.3]} 2. h4 {[%clk 0:03:00.7]}
2... Nc6 {[%clk 0:02:56.2]} 3. h5 {[%clk 0:03:00.2]} 3... e5 {[%clk 0:02:55.5]}
4. d3 {[%clk 0:03:00.6]} 4... d5 {[%clk 0:02:53.2]} 5. g3 {[%clk 0:03:00]} 5...
Be6 {[%clk 0:02:52.5]} 6. Nc3 {[%clk 0:02:59.1]} 6... Qd7 {[%clk 0:02:52.7]} 7.
e4 {[%clk 0:02:59.3]} 7... d4 {[%clk 0:02:51.5]} 8. Ne2 {[%clk 0:02:56.8]} 8...
Bd6 {[%clk 0:02:43.2]} 9. Ng5 {[%clk 0:02:54.6]} 9... Bg4 {[%clk 0:02:28.2]} 10.
f3 {[%clk 0:02:51.5]} 10... h6 {[%clk 0:02:27.4]} 11. fxg4 {[%clk 0:02:45.2]}
11... hxg5 {[%clk 0:02:26.9]} 12. Bxg5 {[%clk 0:02:42.7]} 12... f6 {[%clk
0:02:10.3]} 13. Bd2 {[%clk 0:02:31.3]} 13... Qxg4 {[%clk 0:02:10]} 14. Rh4
{[%clk 0:02:26.3]} 14... Qf3 {[%clk 0:02:00.5]} 15. Rh3 {[%clk 0:02:12.7]} 15...
Rxh5 {[%clk 0:01:54.2]} 16. Ng1 {[%clk 0:02:13.1]} 16... Qxd1+ {[%clk
0:01:47.7]} 17. Kxd1 {[%clk 0:02:11.9]} 17... Rxh3 {[%clk 0:01:48.1]} 18. Bxh3
{[%clk 0:02:12.8]} 18... Kf7 {[%clk 0:01:38.6]} 19. Ke2 {[%clk 0:02:05.3]} 19...
Nge7 {[%clk 0:01:38.9]} 20. Rf1 {[%clk 0:02:03.2]} 20... Rh8 {[%clk 0:01:37.6]}
21. Nf3 {[%clk 0:02:02.7]} 21... Nd8 {[%clk 0:01:19.5]} 22. Bd7 {[%clk
0:01:52.8]} 22... Ne6 {[%clk 0:01:11.2]} 23. a3 {[%clk 0:01:47.9]} 23... a6
{[%clk 0:01:02.2]} 24. b4 {[%clk 0:01:45.4]} 24... cxb4 {[%clk 0:00:56.5]} 25.
axb4 {[%clk 0:01:44.6]} 25... Nc6 {[%clk 0:00:46.8]} 26. c4 {[%clk 0:01:26]}
26... Nxb4 {[%clk 0:00:32.3]} 27. Nxe5+ {[%clk 0:01:18.8]} 27... Bxe5 {[%clk
0:00:26.5]} 28. Bxb4 {[%clk 0:01:18.3]} 28... Rh2+ {[%clk 0:00:25.4]} 29. Rf2
{[%clk 0:01:15.1]} 29... Rh3 {[%clk 0:00:18.5]} 30. g4 {[%clk 0:00:49.7]} 30...
Re3+ {[%clk 0:00:17.4]} 31. Kd2 {[%clk 0:00:47.4]} 31... Ng5 {[%clk 0:00:17.2]}
32. Kc2 {[%clk 0:00:41.3]} 32... Rg3 {[%clk 0:00:16.4]} 33. Bd2 {[%clk
0:00:37.8]} 33... Nf3 {[%clk 0:00:14.8]} 34. Bc1 {[%clk 0:00:32.8]} 34... Ne1+
{[%clk 0:00:13.3]} 35. Kb1 {[%clk 0:00:32.3]} 35... Nxd3 {[%clk 0:00:13.8]} 36.
Rf1 {[%clk 0:00:23]} 36... Ke7 {[%clk 0:00:11.7]} 37. Bc8 {[%clk 0:00:22.1]}
37... Nc5 {[%clk 0:00:10.3]} 38. g5 {[%clk 0:00:21.2]} 38... fxg5 {[%clk
0:00:08.5]} 39. Bf5 {[%clk 0:00:20.5]} 39... Bf6 {[%clk 0:00:07.2]} 40. Bg6
{[%clk 0:00:20.7]} 40... Rg4 {[%clk 0:00:06.5]} 41. Rh1 {[%clk 0:00:20.2]} 41...
Kd6 {[%clk 0:00:06.2]} 42. Rh8 {[%clk 0:00:18.6]} 42... Nxe4 {[%clk 0:00:06.6]}
43. Ba3+ {[%clk 0:00:18.7]} 43... Kc6 {[%clk 0:00:05.9]} 44. Rc8+ {[%clk
0:00:18.1]} 44... Kb6 {[%clk 0:00:06]} 45. c5+ {[%clk 0:00:18.6]} 45... Ka7
{[%clk 0:00:05.3]} 46. Re8 {[%clk 0:00:17.7]} 46... Nc3+ {[%clk 0:00:04.5]} 47.
Kc2 {[%clk 0:00:17.6]} 47... Nb5 {[%clk 0:00:04.9]} 48. Bb4 {[%clk 0:00:16]}
48... Rg2+ {[%clk 0:00:05]} 49. Kb3 {[%clk 0:00:16]} 49... Rg3+ {[%clk
0:00:05.4]} 50. Kc4 {[%clk 0:00:16.1]} 50... d3 {[%clk 0:00:05]} 51. Bxd3 {[%clk
0:00:15.6]} 51... Rg4+ {[%clk 0:00:04.9]} 52. Be4 {[%clk 0:00:15.4]} 52... Rf4
{[%clk 0:00:04.5]} 53. c6 {[%clk 0:00:15.5]} 53... bxc6 {[%clk 0:00:04.4]} 54.
Bc5+ {[%clk 0:00:15]} 54... Kb7 {[%clk 0:00:04.2]} 55. Be3 {[%clk 0:00:15.3]}
55... Rg4 {[%clk 0:00:03.6]} 56. Kc5 {[%clk 0:00:15.8]} 56... Nc3 {[%clk
0:00:03.3]} 57. Bxc6+ {[%clk 0:00:15.2]} 57... Kc7 {[%clk 0:00:03.6]} 58. Bf3
{[%clk 0:00:12.3]} 58... Rg3 {[%clk 0:00:03.4]} 59. Bc6 {[%clk 0:00:10.6]} 59...
Rxe3 {[%clk 0:00:01.6]} 60. Rxe3 {[%clk 0:00:10.3]} 60... g4 {[%clk 0:00:01.4]}
61. Bg2 {[%clk 0:00:08]} 1-0

[Event "*** Titled Tuesday Blitz"]
[Site "Chess.com"]
[Date "2021.04.27"]
[Round "11"]
[White "SanchezKelvin"]
[Black "TokChess"]
[Result "1-0"]
[WhiteElo "268"]
[BlackElo "2371"]
[TimeControl "180+1"]
[EndTime "12:05:31 PDT"]
[Termination "SanchezKelvin won by resignation"]

1. e4 {[%clk 0:02:49.8]} 1... c5 {[%clk 0:02:59.2]} 2. Nf3 {[%clk 0:02:45.9]}
2... e6 {[%clk 0:02:58.9]} 3. d4 {[%clk 0:02:46.4]} 3... cxd4 {[%clk 0:02:59.8]}
4. Nxd4 {[%clk 0:02:47.3]} 4... Nc6 {[%clk 0:02:58.9]} 5. Nc3 {[%clk 0:02:47.3]}
5... a6 {[%clk 0:02:56.3]} 6. Be3 {[%clk 0:02:47]} 6... Nge7 {[%clk 0:02:53.1]}
7. Qf3 {[%clk 0:02:41.8]} 7... Nxd4 {[%clk 0:02:51.6]} 8. Bxd4 {[%clk
0:02:42.7]} 8... Nc6 {[%clk 0:02:51.2]} 9. Be3 {[%clk 0:02:38.6]} 9... Qf6
{[%clk 0:02:49.4]} 10. Qxf6 {[%clk 0:02:33.7]} 10... gxf6 {[%clk 0:02:49.9]} 11.
O-O-O {[%clk 0:02:33.7]} 11... b5 {[%clk 0:02:38.6]} 12. g3 {[%clk 0:02:31.3]}
12... Bb7 {[%clk 0:02:38.5]} 13. Bg2 {[%clk 0:02:30.4]} 13... h5 {[%clk
0:02:29.3]} 14. h4 {[%clk 0:02:27.6]} 14... Bh6 {[%clk 0:02:21.3]} 15. Bxh6
{[%clk 0:02:15.5]} 15... Rxh6 {[%clk 0:02:22.2]} 16. Rd6 {[%clk 0:02:15.1]}
16... Ne5 {[%clk 0:02:10.7]} 17. Rhd1 {[%clk 0:02:12.2]} 17... Bc6 {[%clk
0:02:10.1]} 18. Ne2 {[%clk 0:01:57.4]} 18... Nc4 {[%clk 0:02:04.2]} 19. R6d3
{[%clk 0:01:50.2]} 19... f5 {[%clk 0:01:49.3]} 20. Nc3 {[%clk 0:00:45]} 20... b4
{[%clk 0:01:30.2]} 21. Rd4 {[%clk 0:00:44]} 21... bxc3 {[%clk 0:01:05.7]} 22.
Rxc4 {[%clk 0:00:42.9]} 22... cxb2+ {[%clk 0:01:05.4]} 23. Kxb2 {[%clk
0:00:42.7]} 23... Rb8+ {[%clk 0:00:46.7]} 24. Kc1 {[%clk 0:00:39.2]} 24... Ke7
{[%clk 0:00:33.8]} 25. Bh1 {[%clk 0:00:37.4]} 25... fxe4 {[%clk 0:00:21.5]} 26.
Bxe4 {[%clk 0:00:36.1]} 26... Bxe4 {[%clk 0:00:19.4]} 27. Rxe4 {[%clk 0:00:37]}
27... Rf6 {[%clk 0:00:19.9]} 28. Rd2 {[%clk 0:00:34.7]} 28... Rf5 {[%clk
0:00:18.1]} 29. Red4 {[%clk 0:00:32.6]} 29... Rb7 {[%clk 0:00:16.8]} 30. Ra4
{[%clk 0:00:29]} 30... a5 {[%clk 0:00:17.2]} 31. Ra3 {[%clk 0:00:26.3]} 31...
Rc7 {[%clk 0:00:17.2]} 32. Rb3 {[%clk 0:00:24]} 32... Rc4 {[%clk 0:00:17.2]} 33.
a3 {[%clk 0:00:22.5]} 33... a4 {[%clk 0:00:15.9]} 34. Rb4 {[%clk 0:00:21.1]}
34... Rfc5 {[%clk 0:00:13.9]} 35. Rxc4 {[%clk 0:00:20.1]} 35... Rxc4 {[%clk
0:00:14.8]} 36. Kb2 {[%clk 0:00:20.5]} 36... d5 {[%clk 0:00:14.9]} 37. c3 {[%clk
0:00:19.8]} 37... Kd7 {[%clk 0:00:15.2]} 38. Rd4 {[%clk 0:00:18]} 38... Kd6
{[%clk 0:00:11.3]} 39. Rxc4 {[%clk 0:00:16.2]} 39... dxc4 {[%clk 0:00:11.6]} 40.
Kc2 {[%clk 0:00:16.6]} 40... Kd5 {[%clk 0:00:12.1]} 41. Kd2 {[%clk 0:00:16.5]}
41... Ke4 {[%clk 0:00:12.3]} 42. Ke2 {[%clk 0:00:16.9]} 42... e5 {[%clk
0:00:10.9]} 43. f3+ {[%clk 0:00:17.1]} 43... Kf5 {[%clk 0:00:08.2]} 44. Ke3
{[%clk 0:00:17.3]} 44... f6 {[%clk 0:00:08.8]} 45. Kf2 {[%clk 0:00:16.3]} 45...
Ke6 {[%clk 0:00:09.2]} 46. Ke2 {[%clk 0:00:16.7]} 46... f5 {[%clk 0:00:09.6]}
47. Ke3 {[%clk 0:00:16.9]} 47... Kd5 {[%clk 0:00:09]} 48. Ke2 {[%clk 0:00:16.6]}
48... Ke6 {[%clk 0:00:07.4]} 49. Ke3 {[%clk 0:00:16.8]} 49... Kf6 {[%clk
0:00:07.2]} 50. f4 {[%clk 0:00:16.3]} 50... e4 {[%clk 0:00:06.2]} 51. Kd4 {[%clk
0:00:16.3]} 51... Ke6 {[%clk 0:00:06.6]} 52. Kxc4 {[%clk 0:00:16.5]} 52... Kd6
{[%clk 0:00:07]} 53. Kd4 {[%clk 0:00:16.8]} 53... Kc6 {[%clk 0:00:07.2]} 54. Kc4
{[%clk 0:00:17]} 54... Kd6 {[%clk 0:00:07.6]} 55. Kd4 {[%clk 0:00:17.4]} 55...
Kc6 {[%clk 0:00:08.1]} 56. c4 {[%clk 0:00:17.2]} 56... Kd6 {[%clk 0:00:08.2]}
57. c5+ {[%clk 0:00:17.4]} 57... Kc6 {[%clk 0:00:08.5]} 58. Kc4 {[%clk
0:00:17.8]} 58... e3 {[%clk 0:00:04.8]} 59. Kd3 {[%clk 0:00:17.9]} 59... Kxc5
{[%clk 0:00:05.4]} 60. Kxe3 {[%clk 0:00:18.3]} 60... Kc4 {[%clk 0:00:06]} 61.
Kf3 {[%clk 0:00:17.9]} 61... Kd4 {[%clk 0:00:05.9]} 62. Kf2 {[%clk 0:00:17]}
62... Kc3 {[%clk 0:00:02.7]} 63. Ke3 {[%clk 0:00:17.1]} 63... Kb3 {[%clk
0:00:02.8]} 64. g4 {[%clk 0:00:17.2]} 64... fxg4 {[%clk 0:00:02]} 65. f5 {[%clk
0:00:16.8]} 65... Kxa3 {[%clk 0:00:02.9]} 66. f6 {[%clk 0:00:17]} 66... Kb2
{[%clk 0:00:03.7]} 67. f7 {[%clk 0:00:17.6]} 67... a3 {[%clk 0:00:04.6]} 68.
f8=Q {[%clk 0:00:18.1]} 68... a2 {[%clk 0:00:05.2]} 69. Qb4+ {[%clk 0:00:18.2]}
69... Kc1 {[%clk 0:00:05.4]} 70. Qc3+ {[%clk 0:00:18.1]} 70... Kb1 {[%clk
0:00:05.8]} 71. Qb3+ {[%clk 0:00:18.4]} 71... Ka1 {[%clk 0:00:05.7]} 72. Kd2
{[%clk 0:00:18.8]} 72... g3 {[%clk 0:00:05.4]} 73. Kc2 {[%clk 0:00:19]} 1-0

[Event "*** Titled Tuesday Blitz"]
[Site "Chess.com"]
[Date "2021.04.27"]
[Round "11"]
[White "elextranjero00"]
[Black "starworld123"]
[Result "1-0"]
[WhiteElo "2628"]
[BlackElo "2755"]
[TimeControl "180+1"]
[EndTime "12:05:33 PDT"]
[Termination "elextranjero00 won by checkmate"]

1. e4 {[%clk 0:03:00.9]} 1... c5 {[%clk 0:02:28.2]} 2. Nf3 {[%clk 0:03:00.1]}
2... d6 {[%clk 0:02:28.3]} 3. d4 {[%clk 0:03:00.1]} 3... cxd4 {[%clk 0:02:29.2]}
4. Qxd4 {[%clk 0:03:00.6]} 4... Nc6 {[%clk 0:02:28.8]} 5. Qe3 {[%clk 0:03:00.8]}
5... g6 {[%clk 0:02:28.4]} 6. Be2 {[%clk 0:02:59.4]} 6... Bg7 {[%clk 0:02:26.2]}
7. O-O {[%clk 0:02:58.6]} 7... Nf6 {[%clk 0:02:26.8]} 8. Rd1 {[%clk 0:02:53.9]}
8... O-O {[%clk 0:02:26.8]} 9. h3 {[%clk 0:02:52.7]} 9... Nd7 {[%clk 0:02:22.9]}
10. Nc3 {[%clk 0:02:47.1]} 10... Nc5 {[%clk 0:02:21]} 11. Nd5 {[%clk 0:02:38.7]}
11... Be6 {[%clk 0:02:09.4]} 12. c3 {[%clk 0:02:38.4]} 12... Rc8 {[%clk
0:02:07.4]} 13. Qf4 {[%clk 0:02:29]} 13... Ne5 {[%clk 0:01:54.7]} 14. Nd4 {[%clk
0:02:22.8]} 14... Bd7 {[%clk 0:01:43]} 15. Be3 {[%clk 0:01:25.5]} 15... e6
{[%clk 0:01:27.2]} 16. Nb4 {[%clk 0:01:25.2]} 16... a5 {[%clk 0:01:24.4]} 17.
Nbc2 {[%clk 0:01:23.4]} 17... Na4 {[%clk 0:01:14.2]} 18. Rab1 {[%clk 0:01:20.6]}
18... Nc4 {[%clk 0:00:59.4]} 19. Bxc4 {[%clk 0:01:07]} 19... e5 {[%clk
0:00:58.3]} 20. Qf3 {[%clk 0:00:27.4]} 20... exd4 {[%clk 0:00:57.1]} 21. Nxd4
{[%clk 0:00:24.9]} 21... Rxc4 {[%clk 0:00:56.4]} 22. b3 {[%clk 0:00:25.2]} 22...
Rxc3 {[%clk 0:00:29]} 23. bxa4 {[%clk 0:00:24.6]} 23... Bxa4 {[%clk 0:00:29.9]}
24. Rd2 {[%clk 0:00:23.1]} 24... Qd7 {[%clk 0:00:22]} 25. Qf4 {[%clk 0:00:17.9]}
25... Be5 {[%clk 0:00:20.4]} 26. Qh6 {[%clk 0:00:18]} 26... Bg7 {[%clk 0:00:20]}
27. Qf4 {[%clk 0:00:17.7]} 27... Rfc8 {[%clk 0:00:20.4]} 28. Nf3 {[%clk
0:00:16.4]} 28... R8c6 {[%clk 0:00:15.6]} 29. e5 {[%clk 0:00:15.5]} 29... dxe5
{[%clk 0:00:11.3]} 30. Qxa4 {[%clk 0:00:12.3]} 30... Rc1+ {[%clk 0:00:10.4]} 31.
Kh2 {[%clk 0:00:12.1]} 31... Qc7 {[%clk 0:00:08.8]} 32. Rxc1 {[%clk 0:00:11.2]}
32... e4+ {[%clk 0:00:08.9]} 33. g3 {[%clk 0:00:09.1]} 33... Rxc1 {[%clk
0:00:09.1]} 34. Qe8+ {[%clk 0:00:07.8]} 34... Bf8 {[%clk 0:00:09.6]} 35. Bh6
{[%clk 0:00:07.8]} 35... Qe7 {[%clk 0:00:08.5]} 36. Qxe7 {[%clk 0:00:07.3]}
36... Bxe7 {[%clk 0:00:09.4]} 37. Ne5 {[%clk 0:00:07.4]} 37... f5 {[%clk
0:00:07.8]} 38. Rd7 {[%clk 0:00:06]} 38... Bf6 {[%clk 0:00:08.1]} 39. Bxc1
{[%clk 0:00:05.5]} 39... Bxe5 {[%clk 0:00:08.3]} 40. Rxb7 {[%clk 0:00:05.8]}
40... Bd4 {[%clk 0:00:08.5]} 41. Kg2 {[%clk 0:00:04.4]} 41... h5 {[%clk
0:00:06.1]} 42. Rb5 {[%clk 0:00:04.8]} 42... Bc3 {[%clk 0:00:06.5]} 43. Rc5
{[%clk 0:00:04.6]} 43... Bb4 {[%clk 0:00:06.8]} 44. Rc4 {[%clk 0:00:05]} 44...
Kf7 {[%clk 0:00:07.7]} 45. a3 {[%clk 0:00:05.5]} 45... Be1 {[%clk 0:00:07.6]}
46. Rc5 {[%clk 0:00:04.6]} 46... Ke6 {[%clk 0:00:07.5]} 47. Rc2 {[%clk
0:00:04.9]} 47... Kd5 {[%clk 0:00:07.8]} 48. Re2 {[%clk 0:00:05.6]} 48... Bc3
{[%clk 0:00:08.1]} 49. Bd2 {[%clk 0:00:06.1]} 49... Bd4 {[%clk 0:00:06.2]} 50.
Bxa5 {[%clk 0:00:06.1]} 50... Bc5 {[%clk 0:00:07.1]} 51. Bb4 {[%clk 0:00:05.9]}
51... Bb6 {[%clk 0:00:07.7]} 52. Rd2+ {[%clk 0:00:06.2]} 52... Kc4 {[%clk
0:00:08.6]} 53. Rd6 {[%clk 0:00:06.6]} 53... e3 {[%clk 0:00:07.5]} 54. fxe3
{[%clk 0:00:06.4]} 54... Bxe3 {[%clk 0:00:07.3]} 55. Rxg6 {[%clk 0:00:06.6]}
55... h4 {[%clk 0:00:08]} 56. gxh4 {[%clk 0:00:06.5]} 56... Kd3 {[%clk
0:00:08.9]} 57. Kf3 {[%clk 0:00:06.8]} 57... f4 {[%clk 0:00:08.9]} 58. h5 {[%clk
0:00:07.4]} 58... Kc2 {[%clk 0:00:08.3]} 59. h6 {[%clk 0:00:07.5]} 59... Kd1
{[%clk 0:00:09.2]} 60. h7 {[%clk 0:00:07.8]} 60... Bd4 {[%clk 0:00:09.8]} 61.
Rd6 {[%clk 0:00:07.1]} 61... Kc1 {[%clk 0:00:08]} 62. Rxd4 {[%clk 0:00:06.1]}
62... Kb1 {[%clk 0:00:08.9]} 63. h8=Q {[%clk 0:00:06]} 63... Ka2 {[%clk
0:00:08.9]} 64. Qg8+ {[%clk 0:00:06]} 64... Kb2 {[%clk 0:00:08.7]} 65. Rd2+
{[%clk 0:00:06]} 65... Kc1 {[%clk 0:00:09.3]} 66. Qc4+ {[%clk 0:00:05.8]} 66...
Kb1 {[%clk 0:00:09.5]} 67. Qc2+ {[%clk 0:00:06.4]} 67... Ka1 {[%clk 0:00:09.2]}
68. Rd1# {[%clk 0:00:07.3]} 1-0

[Event "*** Titled Tuesday Blitz"]
[Site "Chess.com"]
[Date "2021.04.27"]
[Round "11"]
[White "GoValya"]
[Black "WiktoriaPOL"]
[Result "1/2-1/2"]
[WhiteElo "2215"]
[BlackElo "2035"]
[TimeControl "180+1"]
[EndTime "12:05:33 PDT"]
[Termination "Game drawn by repetition"]

1. d4 {[%clk 0:03:00.9]} 1... d5 {[%clk 0:02:58.3]} 2. g3 {[%clk 0:03:00.6]}
2... Nf6 {[%clk 0:02:57.1]} 3. Bg2 {[%clk 0:03:00.9]} 3... e6 {[%clk 0:02:56.2]}
4. Nf3 {[%clk 0:03:01]} 4... c5 {[%clk 0:02:56.5]} 5. O-O {[%clk 0:03:01.2]}
5... Nc6 {[%clk 0:02:56.8]} 6. c4 {[%clk 0:03:00.3]} 6... cxd4 {[%clk
0:02:55.4]} 7. Nxd4 {[%clk 0:02:59.8]} 7... Bc5 {[%clk 0:02:55.1]} 8. Nxc6
{[%clk 0:02:59.2]} 8... bxc6 {[%clk 0:02:56]} 9. cxd5 {[%clk 0:02:59.4]} 9...
cxd5 {[%clk 0:02:55.9]} 10. Qc2 {[%clk 0:02:59.6]} 10... Bb6 {[%clk 0:02:54.5]}
11. Qc6+ {[%clk 0:02:49.8]} 11... Bd7 {[%clk 0:02:53.3]} 12. Qd6 {[%clk
0:02:49.3]} 12... Rc8 {[%clk 0:02:49.2]} 13. Nc3 {[%clk 0:02:45.6]} 13... Bc5
{[%clk 0:02:49.3]} 14. Qa6 {[%clk 0:02:44.1]} 14... O-O {[%clk 0:02:48.1]} 15.
a3 {[%clk 0:02:42.1]} 15... d4 {[%clk 0:02:45.3]} 16. Ne4 {[%clk 0:02:34.7]}
16... Nxe4 {[%clk 0:02:44.4]} 17. Bxe4 {[%clk 0:02:34.4]} 17... Bb6 {[%clk
0:02:44.3]} 18. Bf4 {[%clk 0:02:22.5]} 18... f5 {[%clk 0:02:39.3]} 19. Bg2
{[%clk 0:01:55.1]} 19... Qf6 {[%clk 0:02:37.6]} 20. h4 {[%clk 0:01:34.8]} 20...
e5 {[%clk 0:02:35.5]} 21. Bg5 {[%clk 0:01:34.7]} 21... Qe6 {[%clk 0:02:32]} 22.
Rac1 {[%clk 0:01:21.5]} 22... h6 {[%clk 0:02:30.3]} 23. Bd2 {[%clk 0:01:20.5]}
23... e4 {[%clk 0:02:24.2]} 24. Bb4 {[%clk 0:01:12.3]} 24... Rfe8 {[%clk
0:02:20.4]} 25. Rfd1 {[%clk 0:01:07]} 25... Rxc1 {[%clk 0:02:15.5]} 26. Rxc1
{[%clk 0:01:06.7]} 26... d3 {[%clk 0:02:15.9]} 27. e3 {[%clk 0:01:01.8]} 27...
Qd5 {[%clk 0:02:02.9]} 28. Qc4 {[%clk 0:00:54.2]} 28... Be6 {[%clk 0:01:58.1]}
29. Qxd5 {[%clk 0:00:46]} 29... Bxd5 {[%clk 0:01:59]} 30. Bh3 {[%clk 0:00:27.3]}
30... g6 {[%clk 0:01:51.4]} 31. h5 {[%clk 0:00:27.1]} 31... Kg7 {[%clk
0:01:47.7]} 32. g4 {[%clk 0:00:23.2]} 32... fxg4 {[%clk 0:01:40.3]} 33. Bxg4
{[%clk 0:00:21.9]} 33... gxh5 {[%clk 0:01:40.7]} 34. Bxh5 {[%clk 0:00:21.5]}
34... Rg8 {[%clk 0:01:39.4]} 35. Kf1 {[%clk 0:00:21.3]} 35... Kf6 {[%clk
0:01:38.6]} 36. Bc3+ {[%clk 0:00:21.2]} 36... Ke6 {[%clk 0:01:37.3]} 37. a4
{[%clk 0:00:19.8]} 37... Bc4 {[%clk 0:01:22.8]} 38. Bd2 {[%clk 0:00:18.7]} 38...
Bd5 {[%clk 0:01:19.7]} 39. a5 {[%clk 0:00:18.5]} 39... Rg5 {[%clk 0:01:17.2]}
40. Bd1 {[%clk 0:00:18.1]} 40... Bd8 {[%clk 0:01:12.5]} 41. b4 {[%clk 0:00:18]}
41... h5 {[%clk 0:01:09.1]} 42. Rc8 {[%clk 0:00:14.7]} 42... Kd7 {[%clk
0:01:07.8]} 43. Rc5 {[%clk 0:00:12.7]} 43... h4 {[%clk 0:01:02.6]} 44. Ba4+
{[%clk 0:00:12]} 44... Kd6 {[%clk 0:00:59.7]} 45. Rc8 {[%clk 0:00:11.5]} 45...
Ke7 {[%clk 0:00:58.7]} 46. b5 {[%clk 0:00:10.1]} 46... h3 {[%clk 0:00:30.9]} 47.
Bb4+ {[%clk 0:00:09.8]} 47... Kd7 {[%clk 0:00:30.3]} 48. Rxd8+ {[%clk
0:00:08.5]} 48... Kxd8 {[%clk 0:00:29.4]} 49. Bd6 {[%clk 0:00:08.7]} 49... Kc8
{[%clk 0:00:18.6]} 50. b6 {[%clk 0:00:08]} 50... axb6 {[%clk 0:00:17.9]} 51.
axb6 {[%clk 0:00:08.4]} 51... Kb7 {[%clk 0:00:18.2]} 52. Bc7 {[%clk 0:00:08.6]}
52... Bc6 {[%clk 0:00:14.7]} 53. Bd1 {[%clk 0:00:07.8]} 53... Rg7 {[%clk
0:00:09.1]} 54. Bh2 {[%clk 0:00:06.1]} 54... Kxb6 {[%clk 0:00:08.4]} 55. Bf4
{[%clk 0:00:06.2]} 55... Kc5 {[%clk 0:00:08.1]} 56. Be5 {[%clk 0:00:06.5]} 56...
Kc4 {[%clk 0:00:07.8]} 57. Bxg7 {[%clk 0:00:06.2]} 57... h2 {[%clk 0:00:02.8]}
58. Kg2 {[%clk 0:00:06.6]} 58... Kb4 {[%clk 0:00:01.6]} 59. Kxh2 {[%clk
0:00:06.9]} 59... Ba4 {[%clk 0:00:01.8]} 60. Bh5 {[%clk 0:00:04.8]} 60... d2
{[%clk 0:00:01.6]} 61. Kg3 {[%clk 0:00:05]} 61... d1=Q {[%clk 0:00:01.8]} 62.
Bxd1 {[%clk 0:00:04.8]} 62... Bxd1 {[%clk 0:00:02.7]} 63. f3 {[%clk 0:00:04.7]}
63... Bxf3 {[%clk 0:00:03.2]} 64. Kf4 {[%clk 0:00:05.1]} 64... Kc4 {[%clk
0:00:03.6]} 65. Bd4 {[%clk 0:00:05.2]} 65... Kd3 {[%clk 0:00:04.1]} 66. Ke5
{[%clk 0:00:05.3]} 66... Ke2 {[%clk 0:00:04.1]} 67. Kf4 {[%clk 0:00:06.2]} 67...
Kd3 {[%clk 0:00:04.5]} 68. Ke5 {[%clk 0:00:07.1]} 68... Ke2 {[%clk 0:00:05.2]}
69. Kf4 {[%clk 0:00:08]} 69... Kd3 {[%clk 0:00:05.4]} 1/2-1/2